[Event "Titled Tuesday Blitz March 14 Late 2023"]
[White "Jovic, Stanoje"]
[Black "Tagliati, Eleonore"]
[WhiteFideId "905020"]
[BlackFideId "45172234"]
[WhiteElo "2236"]
[BlackElo "2216"]
[Result "1-0"]
[Round "02"]
[TimeControl "180+2"]
[Date "2023.03.14"]
[WhiteClock "0:02:37"]
[BlackClock "0:02:18"]

1. c4 {[%clk 0:03:00]}  c5 {[%clk 0:02:52]} 2. g3 {[%clk 0:03:01]}  g6 {[%clk 0:02:52]} 3. Bg2 {[%clk 0:03:01]}  Bg7 {[%clk 0:02:51]} 4. Nc3 {[%clk 0:03:01]}  Nc6 {[%clk 0:02:50]} 5. Nf3 {[%clk 0:03:01]}  Nf6 {[%clk 0:02:48]} 6. O-O {[%clk 0:03:01]}  O-O {[%clk 0:02:48]} 7. d4 {[%clk 0:03:01]}  cxd4 {[%clk 0:02:45]} 8. Nxd4 {[%clk 0:03:02]}  e5 {[%clk 0:02:45]} 9. Ndb5 {[%clk 0:03:00]}  a6 {[%clk 0:02:36]} 10. Nd6 {[%clk 0:02:59]}  Ne8 {[%clk 0:02:35]} 11. c5 {[%clk 0:02:52]}  Nxd6 {[%clk 0:02:33]} 12. cxd6 {[%clk 0:02:51]}  b5 {[%clk 0:02:24]} 13. Nd5 {[%clk 0:02:45]}  Bb7 {[%clk 0:02:23]} 14. Be3 {[%clk 0:02:40]}  Nd4 {[%clk 0:02:18]} 15. Ne7+ {[%clk 0:02:37]} 1-0


[Site "https://www.chess.com"]

[Event "Titled Tuesday Blitz March 14 Late 2023"]
[White "Fernandez Hernandez, Gerardo"]
[Black "slow_jamz"]
[WhiteFideId "2207400"]
[WhiteElo "2197"]
[BlackElo "2462"]
[Result "0-1"]
[Round "02"]
[TimeControl "180+2"]
[Date "2023.03.14"]
[WhiteClock "0:00:05"]
[BlackClock "0:00:09"]

1. e4 {[%clk 0:03:00]}  c5 {[%clk 0:02:59]} 2. d3 {[%clk 0:03:00]}  Nc6 {[%clk 0:02:58]} 3. g3 {[%clk 0:03:01]}  g6 {[%clk 0:02:58]} 4. Bg2 {[%clk 0:03:01]}  Bg7 {[%clk 0:02:59]} 5. f4 {[%clk 0:03:02]}  d6 {[%clk 0:02:53]} 6. Nf3 {[%clk 0:03:02]}  Bg4 {[%clk 0:02:44]} 7. h3 {[%clk 0:03:02]}  Bxf3 {[%clk 0:02:44]} 8. Qxf3 {[%clk 0:03:03]}  Nf6 {[%clk 0:02:42]} 9. O-O {[%clk 0:03:02]}  O-O {[%clk 0:02:43]} 10. Be3 {[%clk 0:03:01]}  Rc8 {[%clk 0:02:36]} 11. c3 {[%clk 0:03:00]}  b5 {[%clk 0:02:36]} 12. Nd2 {[%clk 0:02:40]}  b4 {[%clk 0:02:27]} 13. Rac1 {[%clk 0:02:37]}  Nd7 {[%clk 0:02:22]} 14. Qf2 {[%clk 0:02:26]}  a5 {[%clk 0:02:09]} 15. Nc4 {[%clk 0:02:24]}  Nb6 {[%clk 0:01:50]} 16. Nxb6 {[%clk 0:02:23]}  Qxb6 {[%clk 0:01:51]} 17. c4 {[%clk 0:02:24]}  Nd4 {[%clk 0:01:45]} 18. f5 {[%clk 0:02:14]}  Nc6 {[%clk 0:01:30]} 19. g4 {[%clk 0:02:07]}  Bd4 {[%clk 0:01:29]} 20. g5 {[%clk 0:02:06]}  f6 {[%clk 0:00:39]} 21. h4 {[%clk 0:01:41]}  fxg5 {[%clk 0:00:30]} 22. hxg5 {[%clk 0:01:40]}  Rf7 {[%clk 0:00:08]} 23. Qg3 {[%clk 0:01:28]}  Rcf8 {[%clk 0:00:07]} 24. f6 {[%clk 0:01:22]}  exf6 {[%clk 0:00:07]} 25. e5 {[%clk 0:01:09]}  Nxe5 {[%clk 0:00:01]} 26. Bd5 {[%clk 0:01:10]}  Kg7 {[%clk 0:00:01]} 27. Bxf7 {[%clk 0:01:08]}  Rxf7 {[%clk 0:00:02]} 28. gxf6+ {[%clk 0:01:08]}  Kg8 {[%clk 0:00:02]} 29. Bxd4 {[%clk 0:01:06]}  cxd4 {[%clk 0:00:03]} 30. Rce1 {[%clk 0:01:03]}  Qc5 {[%clk 0:00:03]} 31. Re4 {[%clk 0:01:01]}  a4 {[%clk 0:00:04]} 32. Rh4 {[%clk 0:00:59]}  b3 {[%clk 0:00:02]} 33. axb3 {[%clk 0:00:55]}  axb3 {[%clk 0:00:03]} 34. Qh3 {[%clk 0:00:55]}  Qc6 {[%clk 0:00:04]} 35. Qg2 {[%clk 0:00:49]}  Qd7 {[%clk 0:00:04]} 36. Qd5 {[%clk 0:00:46]}  g5 {[%clk 0:00:04]} 37. Re4 {[%clk 0:00:34]}  h6 {[%clk 0:00:03]} 38. Rxe5 {[%clk 0:00:33]}  dxe5 {[%clk 0:00:03]} 39. Qxe5 {[%clk 0:00:29]}  Qg4+ {[%clk 0:00:03]} 40. Kh1 {[%clk 0:00:27]}  Qh4+ {[%clk 0:00:03]} 41. Qh2 {[%clk 0:00:26]}  Qxh2+ {[%clk 0:00:04]} 42. Kxh2 {[%clk 0:00:27]}  Kh7 {[%clk 0:00:04]} 43. c5 {[%clk 0:00:23]}  Kg6 {[%clk 0:00:05]} 44. c6 {[%clk 0:00:23]}  Rf8 {[%clk 0:00:05]} 45. f7 {[%clk 0:00:21]}  Kg7 {[%clk 0:00:05]} 46. Kg3 {[%clk 0:00:21]}  h5 {[%clk 0:00:05]} 47. Rf5 {[%clk 0:00:18]}  g4 {[%clk 0:00:04]} 48. Kh4 {[%clk 0:00:16]}  Kg6 {[%clk 0:00:04]} 49. Rf4 {[%clk 0:00:10]}  Kg7 {[%clk 0:00:02]} 50. c7 {[%clk 0:00:10]}  Kg6 {[%clk 0:00:02]} 51. Rf1 {[%clk 0:00:05]}  Kg7 {[%clk 0:00:02]} 52. Kxh5 {[%clk 0:00:03]}  g3 {[%clk 0:00:02]} 53. Kg4 {[%clk 0:00:02]}  g2 {[%clk 0:00:02]} 54. Rg1 {[%clk 0:00:02]}  Kxf7 {[%clk 0:00:03]} 55. Rxg2 {[%clk 0:00:02]}  Ke7 {[%clk 0:00:03]} 56. Rh2 {[%clk 0:00:01]}  Kd7 {[%clk 0:00:03]} 57. Rh7+ {[%clk 0:00:02]}  Kc8 {[%clk 0:00:04]} 58. Kg3 {[%clk 0:00:02]}  Rf6 {[%clk 0:00:04]} 59. Re7 {[%clk 0:00:02]}  Rc6 {[%clk 0:00:04]} 60. Re4 {[%clk 0:00:01]}  Rc2 {[%clk 0:00:04]} 61. Rxd4 {[%clk 0:00:02]}  Rxb2 {[%clk 0:00:05]} 62. Rc4 {[%clk 0:00:02]}  Rc2 {[%clk 0:00:05]} 63. d4 {[%clk 0:00:03]}  Rxc4 {[%clk 0:00:05]} 64. d5 {[%clk 0:00:04]}  Rc3+ {[%clk 0:00:06]} 65. Kf4 {[%clk 0:00:03]}  Rxc7 {[%clk 0:00:07]} 66. Ke5 {[%clk 0:00:04]}  Rd7 {[%clk 0:00:08]} 67. d6 {[%clk 0:00:04]}  b2 {[%clk 0:00:09]} 68. Ke6 {[%clk 0:00:05]}  b1=Q {[%clk 0:00:09]} 0-1


[Site "https://www.chess.com"]

[Event "Titled Tuesday Blitz March 14 Late 2023"]
[White "lisjakzlatko1"]
[Black "Heinemann, Josefine"]
[BlackFideId "12900460"]
[WhiteElo "2165"]
[BlackElo "2342"]
[Result "0-1"]
[Round "02"]
[TimeControl "180+2"]
[Date "2023.03.14"]
[WhiteClock "0:00:08"]
[BlackClock "0:00:29"]

1. d4 {[%clk 0:02:55]}  d5 {[%clk 0:02:56]} 2. Nc3 {[%clk 0:02:54]}  Nf6 {[%clk 0:02:55]} 3. Bf4 {[%clk 0:02:53]}  c5 {[%clk 0:02:53]} 4. e3 {[%clk 0:02:53]}  cxd4 {[%clk 0:02:40]} 5. exd4 {[%clk 0:02:49]}  a6 {[%clk 0:02:40]} 6. Bd3 {[%clk 0:02:40]}  Nc6 {[%clk 0:02:39]} 7. a3 {[%clk 0:02:39]}  Nxd4 {[%clk 0:02:32]} 8. Qd2 {[%clk 0:02:29]}  Nc6 {[%clk 0:02:31]} 9. O-O-O {[%clk 0:02:27]}  e6 {[%clk 0:02:31]} 10. Nf3 {[%clk 0:02:23]}  Be7 {[%clk 0:02:29]} 11. g4 {[%clk 0:02:21]}  b5 {[%clk 0:02:20]} 12. Na2 {[%clk 0:01:48]}  Qa5 {[%clk 0:02:03]} 13. Qxa5 {[%clk 0:01:31]}  Nxa5 {[%clk 0:02:04]} 14. Ne5 {[%clk 0:01:29]}  Nd7 {[%clk 0:02:02]} 15. Rhe1 {[%clk 0:01:17]}  Nxe5 {[%clk 0:01:54]} 16. Bxe5 {[%clk 0:01:16]}  f6 {[%clk 0:01:53]} 17. Bc3 {[%clk 0:01:12]}  Nc6 {[%clk 0:01:50]} 18. g5 {[%clk 0:01:05]}  Kf7 {[%clk 0:01:48]} 19. f4 {[%clk 0:00:59]}  Bd7 {[%clk 0:01:40]} 20. h4 {[%clk 0:00:57]}  Bd6 {[%clk 0:01:26]} 21. Rf1 {[%clk 0:00:49]}  Rab8 {[%clk 0:01:14]} 22. h5 {[%clk 0:00:45]}  a5 {[%clk 0:01:11]} 23. g6+ {[%clk 0:00:39]}  hxg6 {[%clk 0:01:11]} 24. Bxg6+ {[%clk 0:00:35]}  Ke7 {[%clk 0:01:06]} 25. f5 {[%clk 0:00:35]}  b4 {[%clk 0:00:59]} 26. Bd2 {[%clk 0:00:22]}  bxa3 {[%clk 0:00:55]} 27. b3 {[%clk 0:00:21]}  e5 {[%clk 0:00:50]} 28. h6 {[%clk 0:00:18]}  gxh6 {[%clk 0:00:48]} 29. Nc3 {[%clk 0:00:18]}  Nb4 {[%clk 0:00:45]} 30. Be3 {[%clk 0:00:08]}  d4 {[%clk 0:00:40]} 31. Ne4 {[%clk 0:00:08]}  Rhc8 {[%clk 0:00:29]} 0-1


[Site "https://www.chess.com"]

[Event "Titled Tuesday Blitz March 14 Late 2023"]
[White "Souza, Gustavo Horokoski De"]
[Black "Szyszylo, Rafal"]
[WhiteFideId "2146584"]
[BlackFideId "1109626"]
[WhiteElo "1859"]
[BlackElo "1951"]
[Result "0-1"]
[Round "02"]
[TimeControl "180+2"]
[Date "2023.03.14"]
[WhiteClock "0:00:17"]
[BlackClock "0:00:19"]

1. d4 {[%clk 0:03:00]}  g6 {[%clk 0:02:59]} 2. c4 {[%clk 0:02:59]}  Nf6 {[%clk 0:02:59]} 3. Nc3 {[%clk 0:02:55]}  Bg7 {[%clk 0:02:59]} 4. e4 {[%clk 0:02:52]}  d6 {[%clk 0:03:00]} 5. Bg5 {[%clk 0:02:52]}  h6 {[%clk 0:02:59]} 6. Bh4 {[%clk 0:02:49]}  O-O {[%clk 0:02:59]} 7. Be2 {[%clk 0:02:49]}  Na6 {[%clk 0:02:59]} 8. f4 {[%clk 0:02:49]}  Qe8 {[%clk 0:02:16]} 9. Nf3 {[%clk 0:02:45]}  Ng4 {[%clk 0:01:32]} 10. Qd2 {[%clk 0:02:31]}  e5 {[%clk 0:01:33]} 11. fxe5 {[%clk 0:02:15]}  dxe5 {[%clk 0:01:33]} 12. d5 {[%clk 0:02:12]}  f5 {[%clk 0:01:26]} 13. h3 {[%clk 0:02:11]}  Nf6 {[%clk 0:01:23]} 14. exf5 {[%clk 0:02:06]}  gxf5 {[%clk 0:01:19]} 15. O-O {[%clk 0:02:05]}  Nc5 {[%clk 0:01:17]} 16. b4 {[%clk 0:02:02]}  Nce4 {[%clk 0:01:17]} 17. Nxe4 {[%clk 0:01:58]}  Nxe4 {[%clk 0:01:18]} 18. Qc2 {[%clk 0:01:51]}  a5 {[%clk 0:00:57]} 19. Bd3 {[%clk 0:01:41]}  axb4 {[%clk 0:00:50]} 20. Bxe4 {[%clk 0:01:39]}  fxe4 {[%clk 0:00:51]} 21. Qxe4 {[%clk 0:01:39]}  Bf5 {[%clk 0:00:50]} 22. Qe3 {[%clk 0:01:28]}  Ra3 {[%clk 0:00:49]} 23. Qc5 {[%clk 0:01:19]}  e4 {[%clk 0:00:49]} 24. Nd4 {[%clk 0:01:19]}  b6 {[%clk 0:00:48]} 25. Qxf8+ {[%clk 0:00:59]}  Bxf8 {[%clk 0:00:41]} 26. Nxf5 {[%clk 0:00:57]}  Bc5+ {[%clk 0:00:40]} 27. Kh1 {[%clk 0:00:56]}  Qh5 {[%clk 0:00:38]} 28. Rae1 {[%clk 0:00:46]}  e3 {[%clk 0:00:28]} 29. Rf3 {[%clk 0:00:40]}  e2 {[%clk 0:00:22]} 30. Rxe2 {[%clk 0:00:16]}  Rxf3 {[%clk 0:00:21]} 31. gxf3 {[%clk 0:00:17]}  Qxf5 {[%clk 0:00:20]} 32. Rg2+ {[%clk 0:00:17]}  Kh7 {[%clk 0:00:19]} 0-1


[Site "https://www.chess.com"]

[Event "Titled Tuesday Blitz March 14 Late 2023"]
[White "Filgueiras, Nathan Felipe"]
[Black "marik_spb"]
[WhiteFideId "2188562"]
[WhiteElo "2241"]
[BlackElo "2416"]
[Result "0-1"]
[Round "02"]
[TimeControl "180+2"]
[Date "2023.03.14"]
[WhiteClock "0:01:57"]
[BlackClock "0:00:32"]

1. e4 {[%clk 0:03:00]}  c6 {[%clk 0:02:52]} 2. d4 {[%clk 0:03:00]}  d5 {[%clk 0:02:52]} 3. exd5 {[%clk 0:03:01]}  cxd5 {[%clk 0:02:53]} 4. Bd3 {[%clk 0:03:01]}  Nf6 {[%clk 0:02:52]} 5. Ne2 {[%clk 0:03:01]}  Nc6 {[%clk 0:02:52]} 6. c3 {[%clk 0:03:02]}  Bg4 {[%clk 0:02:52]} 7. O-O {[%clk 0:03:02]}  e6 {[%clk 0:02:51]} 8. Qe1 {[%clk 0:03:02]}  Bd6 {[%clk 0:02:51]} 9. f3 {[%clk 0:03:03]}  Bh5 {[%clk 0:02:51]} 10. Qh4 {[%clk 0:03:03]}  O-O {[%clk 0:02:39]} 11. Nf4 {[%clk 0:03:02]}  Bg6 {[%clk 0:02:36]} 12. Nxg6 {[%clk 0:03:02]}  hxg6 {[%clk 0:02:36]} 13. Bg5 {[%clk 0:03:03]}  Be7 {[%clk 0:02:36]} 14. Nd2 {[%clk 0:03:01]}  Nh5 {[%clk 0:02:33]} 15. Bxe7 {[%clk 0:03:00]}  Qxe7 {[%clk 0:02:34]} 16. Qxe7 {[%clk 0:03:00]}  Nxe7 {[%clk 0:02:34]} 17. g3 {[%clk 0:03:00]}  Nf6 {[%clk 0:02:31]} 18. Kf2 {[%clk 0:02:55]}  g5 {[%clk 0:02:30]} 19. h3 {[%clk 0:02:55]}  g6 {[%clk 0:02:30]} 20. Rh1 {[%clk 0:02:53]}  Kg7 {[%clk 0:02:30]} 21. h4 {[%clk 0:02:54]}  gxh4 {[%clk 0:02:31]} 22. Rxh4 {[%clk 0:02:54]}  Rh8 {[%clk 0:02:32]} 23. Rah1 {[%clk 0:02:54]}  Nd7 {[%clk 0:02:26]} 24. Rxh8 {[%clk 0:02:53]}  Rxh8 {[%clk 0:02:27]} 25. Rxh8 {[%clk 0:02:53]}  Kxh8 {[%clk 0:02:27]} 26. f4 {[%clk 0:02:52]}  f6 {[%clk 0:02:27]} 27. Nb3 {[%clk 0:02:52]}  b6 {[%clk 0:02:26]} 28. Bb5 {[%clk 0:02:50]}  Nf8 {[%clk 0:02:23]} 29. Nc1 {[%clk 0:02:50]}  Kg7 {[%clk 0:02:23]} 30. Nd3 {[%clk 0:02:50]}  Nf5 {[%clk 0:02:22]} 31. Nb4 {[%clk 0:02:48]}  Nd6 {[%clk 0:02:19]} 32. Bd3 {[%clk 0:02:46]}  Nd7 {[%clk 0:02:13]} 33. Nc6 {[%clk 0:02:46]}  a5 {[%clk 0:02:11]} 34. b4 {[%clk 0:02:38]}  axb4 {[%clk 0:02:09]} 35. cxb4 {[%clk 0:02:39]}  Kf7 {[%clk 0:01:22]} 36. a4 {[%clk 0:02:34]}  Ne4+ {[%clk 0:01:01]} 37. Bxe4 {[%clk 0:02:13]}  dxe4 {[%clk 0:01:02]} 38. a5 {[%clk 0:02:13]}  bxa5 {[%clk 0:01:01]} 39. bxa5 {[%clk 0:02:14]}  Ke8 {[%clk 0:00:47]} 40. a6 {[%clk 0:02:14]}  Nb6 {[%clk 0:00:47]} 41. Ke3 {[%clk 0:02:06]}  Kd7 {[%clk 0:00:47]} 42. Nb4 {[%clk 0:02:01]}  f5 {[%clk 0:00:41]} 43. Kd2 {[%clk 0:01:58]}  Kc7 {[%clk 0:00:37]} 44. Kc3 {[%clk 0:01:57]}  Nd5+ {[%clk 0:00:32]} 45. Nxd5+ {[%clk 0:01:57]}  exd5 {[%clk 0:00:32]} 0-1


[Site "https://www.chess.com"]

[Event "Titled Tuesday Blitz March 14 Late 2023"]
[White "Abrosimov, Vladimir"]
[Black "Santos Flores, Alberto"]
[WhiteFideId "4166892"]
[BlackFideId "3601234"]
[WhiteElo "2336"]
[BlackElo "2235"]
[Result "0-1"]
[Round "03"]
[TimeControl "180+1"]
[Date "2023.03.14"]
[WhiteClock "0:00:02"]
[BlackClock "0:01:38"]

1. c4 {[%clk 0:03:00]}  c5 {[%clk 0:02:59]} 2. Nc3 {[%clk 0:03:01]}  Nc6 {[%clk 0:02:59]} 3. g3 {[%clk 0:03:01]}  g6 {[%clk 0:02:59]} 4. Bg2 {[%clk 0:03:01]}  Bg7 {[%clk 0:03:00]} 5. d3 {[%clk 0:03:02]}  e6 {[%clk 0:03:00]} 6. e4 {[%clk 0:03:03]}  Nge7 {[%clk 0:03:00]} 7. Nge2 {[%clk 0:03:03]}  O-O {[%clk 0:03:00]} 8. O-O {[%clk 0:03:03]}  b6 {[%clk 0:03:01]} 9. f4 {[%clk 0:03:04]}  Bb7 {[%clk 0:03:01]} 10. g4 {[%clk 0:03:01]}  Nd4 {[%clk 0:02:58]} 11. Be3 {[%clk 0:02:50]}  Nxe2+ {[%clk 0:02:56]} 12. Qxe2 {[%clk 0:02:48]}  d5 {[%clk 0:02:56]} 13. cxd5 {[%clk 0:02:46]}  exd5 {[%clk 0:02:57]} 14. f5 {[%clk 0:02:28]}  d4 {[%clk 0:02:35]} 15. f6 {[%clk 0:02:27]}  dxe3 {[%clk 0:02:35]} 16. fxg7 {[%clk 0:02:20]}  Kxg7 {[%clk 0:02:35]} 17. Qxe3 {[%clk 0:02:17]}  Nc6 {[%clk 0:02:35]} 18. Nd5 {[%clk 0:02:10]}  Nd4 {[%clk 0:02:35]} 19. Qf2 {[%clk 0:01:37]}  Bxd5 {[%clk 0:02:29]} 20. exd5 {[%clk 0:01:38]}  Qd7 {[%clk 0:02:27]} 21. Qf6+ {[%clk 0:01:33]}  Kg8 {[%clk 0:02:27]} 22. Rae1 {[%clk 0:01:25]}  Rae8 {[%clk 0:02:26]} 23. h3 {[%clk 0:01:15]}  Rxe1 {[%clk 0:02:25]} 24. Rxe1 {[%clk 0:01:15]}  Re8 {[%clk 0:02:25]} 25. Rxe8+ {[%clk 0:01:09]}  Qxe8 {[%clk 0:02:26]} 26. Be4 {[%clk 0:01:04]}  Qd7 {[%clk 0:02:08]} 27. d6 {[%clk 0:00:57]}  Nb5 {[%clk 0:01:59]} 28. Qe7 {[%clk 0:00:31]}  Qxd6 {[%clk 0:01:59]} 29. Qe8+ {[%clk 0:00:31]}  Kg7 {[%clk 0:01:59]} 30. Qxb5 {[%clk 0:00:31]}  Qd4+ {[%clk 0:01:59]} 31. Kf1 {[%clk 0:00:30]}  Qe3 {[%clk 0:01:58]} 32. Qb3 {[%clk 0:00:19]}  Qxh3+ {[%clk 0:01:57]} 33. Kf2 {[%clk 0:00:19]}  Qxg4 {[%clk 0:01:56]} 34. Qc3+ {[%clk 0:00:19]}  Kg8 {[%clk 0:01:55]} 35. Qe5 {[%clk 0:00:19]}  Qh4+ {[%clk 0:01:52]} 36. Ke2 {[%clk 0:00:18]}  h5 {[%clk 0:01:50]} 37. Qe8+ {[%clk 0:00:16]}  Kg7 {[%clk 0:01:50]} 38. Qe5+ {[%clk 0:00:15]}  Qf6 {[%clk 0:01:50]} 39. Qe8 {[%clk 0:00:09]}  Qxb2+ {[%clk 0:01:50]} 40. Kf3 {[%clk 0:00:08]}  Qf6+ {[%clk 0:01:47]} 41. Ke3 {[%clk 0:00:08]}  h4 {[%clk 0:01:46]} 42. Qc8 {[%clk 0:00:04]}  Qg5+ {[%clk 0:01:45]} 43. Ke2 {[%clk 0:00:04]}  Qh5+ {[%clk 0:01:43]} 44. Ke3 {[%clk 0:00:04]}  h3 {[%clk 0:01:43]} 45. Qd7 {[%clk 0:00:02]}  h2 {[%clk 0:01:42]} 46. Qe7 {[%clk 0:00:01]}  h1=Q {[%clk 0:01:38]} 47. Bxh1 {[%clk 0:00:02]}  Qxh1 {[%clk 0:01:38]} 48. Qe5+ {[%clk 0:00:02]}  Kh7 {[%clk 0:01:39]} 49. Qe7 {[%clk 0:00:02]}  Qe1+ {[%clk 0:01:38]} 0-1


[Site "https://www.chess.com"]

[Event "Titled Tuesday Blitz March 14 Late 2023"]
[White "Adury, Anant"]
[Black "Omelja, Artem"]
[WhiteFideId "30964687"]
[BlackFideId "14119846"]
[WhiteElo "2249"]
[BlackElo "2404"]
[Result "0-1"]
[Round "03"]
[TimeControl "180+1"]
[Date "2023.03.14"]
[WhiteClock "0:00:14"]
[BlackClock "0:00:04"]

1. Nf3 {[%clk 0:03:00]}  Nf6 {[%clk 0:02:54]} 2. c3 {[%clk 0:03:01]}  b6 {[%clk 0:02:54]} 3. d4 {[%clk 0:02:58]}  Bb7 {[%clk 0:02:54]} 4. Bf4 {[%clk 0:02:59]}  d5 {[%clk 0:02:54]} 5. e3 {[%clk 0:02:59]}  e6 {[%clk 0:02:55]} 6. Bd3 {[%clk 0:03:00]}  Bd6 {[%clk 0:02:55]} 7. Bg3 {[%clk 0:02:59]}  O-O {[%clk 0:02:55]} 8. Nbd2 {[%clk 0:03:00]}  c5 {[%clk 0:02:56]} 9. Ne5 {[%clk 0:02:58]}  Nc6 {[%clk 0:02:56]} 10. f4 {[%clk 0:02:58]}  Nd7 {[%clk 0:02:32]} 11. Qh5 {[%clk 0:02:41]}  f5 {[%clk 0:02:26]} 12. Bh4 {[%clk 0:02:39]}  Nf6 {[%clk 0:02:24]} 13. g4 {[%clk 0:02:36]}  Nxh5 {[%clk 0:02:16]} 14. Bxd8 {[%clk 0:02:34]}  Nxf4 {[%clk 0:02:13]} 15. exf4 {[%clk 0:02:26]}  Raxd8 {[%clk 0:02:11]} 16. gxf5 {[%clk 0:02:24]}  exf5 {[%clk 0:01:53]} 17. Bb5 {[%clk 0:02:19]}  Bxe5 {[%clk 0:01:27]} 18. fxe5 {[%clk 0:02:15]}  Ne7 {[%clk 0:01:19]} 19. Nf3 {[%clk 0:02:13]}  h6 {[%clk 0:01:12]} 20. b4 {[%clk 0:02:10]}  cxb4 {[%clk 0:01:06]} 21. cxb4 {[%clk 0:02:10]}  Rc8 {[%clk 0:01:07]} 22. Kd2 {[%clk 0:02:10]}  Bc6 {[%clk 0:00:54]} 23. Bd3 {[%clk 0:02:09]}  Bd7 {[%clk 0:00:53]} 24. a4 {[%clk 0:02:07]}  g5 {[%clk 0:00:48]} 25. a5 {[%clk 0:02:03]}  bxa5 {[%clk 0:00:46]} 26. Rxa5 {[%clk 0:02:02]}  Rc7 {[%clk 0:00:45]} 27. Rc5 {[%clk 0:01:59]}  Rb7 {[%clk 0:00:41]} 28. Ra1 {[%clk 0:01:59]}  g4 {[%clk 0:00:36]} 29. Nh4 {[%clk 0:01:57]}  Nc6 {[%clk 0:00:35]} 30. Rxd5 {[%clk 0:01:54]}  Nxb4 {[%clk 0:00:34]} 31. Bc4 {[%clk 0:01:54]}  Kg7 {[%clk 0:00:31]} 32. Rd6 {[%clk 0:01:54]}  Nc6 {[%clk 0:00:13]} 33. e6 {[%clk 0:01:42]}  Be8 {[%clk 0:00:13]} 34. d5 {[%clk 0:01:42]}  Ne5 {[%clk 0:00:13]} 35. Bd3 {[%clk 0:01:27]}  f4 {[%clk 0:00:12]} 36. Rda6 {[%clk 0:01:26]}  f3 {[%clk 0:00:06]} 37. Rxa7 {[%clk 0:01:26]}  Rxa7 {[%clk 0:00:04]} 38. Rxa7+ {[%clk 0:01:27]}  Kf6 {[%clk 0:00:05]} 39. e7 {[%clk 0:01:14]}  Rf7 {[%clk 0:00:05]} 40. Nf5 {[%clk 0:01:15]}  Nxd3 {[%clk 0:00:04]} 41. Nd6 {[%clk 0:01:15]}  Rxe7 {[%clk 0:00:04]} 42. Ra6 {[%clk 0:00:24]}  Nb4 {[%clk 0:00:04]} 43. Nxe8+ {[%clk 0:00:24]}  Kg5 {[%clk 0:00:04]} 44. Re6 {[%clk 0:00:23]}  Rxe6 {[%clk 0:00:04]} 45. dxe6 {[%clk 0:00:24]}  Nd5 {[%clk 0:00:03]} 46. Ng7 {[%clk 0:00:19]}  Kf6 {[%clk 0:00:03]} 47. Nh5+ {[%clk 0:00:16]}  Kxe6 {[%clk 0:00:03]} 48. Kd3 {[%clk 0:00:17]}  Kf5 {[%clk 0:00:03]} 49. Ng3+ {[%clk 0:00:16]}  Kf4 {[%clk 0:00:03]} 50. Nh5+ {[%clk 0:00:17]}  Kg5 {[%clk 0:00:03]} 51. Ng3 {[%clk 0:00:17]}  h5 {[%clk 0:00:04]} 52. Ke4 {[%clk 0:00:18]}  Nf6+ {[%clk 0:00:04]} 53. Ke3 {[%clk 0:00:18]}  h4 {[%clk 0:00:04]} 54. Nf1 {[%clk 0:00:18]}  Kf5 {[%clk 0:00:04]} 55. Kf2 {[%clk 0:00:18]}  Kf4 {[%clk 0:00:03]} 56. Nd2 {[%clk 0:00:14]}  Ne4+ {[%clk 0:00:04]} 0-1


[Site "https://www.chess.com"]

[Event "Titled Tuesday Blitz March 14 Late 2023"]
[White "Albornoz Cabrera, Carlos Daniel"]
[Black "Nakamura, Hikaru"]
[WhiteFideId "3518736"]
[BlackFideId "2016192"]
[WhiteElo "2501"]
[BlackElo "2879"]
[Result "0-1"]
[Round "03"]
[TimeControl "180+1"]
[Date "2023.03.14"]
[WhiteClock "0:00:28"]
[BlackClock "0:01:24"]

1. e4 {[%clk 0:03:00]}  e6 {[%clk 0:02:58]} 2. d4 {[%clk 0:03:00]}  d5 {[%clk 0:02:58]} 3. Nd2 {[%clk 0:03:01]}  dxe4 {[%clk 0:02:52]} 4. Nxe4 {[%clk 0:03:00]}  Bd7 {[%clk 0:02:52]} 5. Nf3 {[%clk 0:03:00]}  Bc6 {[%clk 0:02:52]} 6. Bd3 {[%clk 0:03:00]}  Nd7 {[%clk 0:02:51]} 7. O-O {[%clk 0:03:00]}  Ngf6 {[%clk 0:02:49]} 8. Ng3 {[%clk 0:03:00]}  Bd6 {[%clk 0:02:46]} 9. Re1 {[%clk 0:02:57]}  O-O {[%clk 0:02:45]} 10. Ne5 {[%clk 0:02:54]}  h6 {[%clk 0:02:40]} 11. Nxc6 {[%clk 0:02:51]}  bxc6 {[%clk 0:02:41]} 12. Qf3 {[%clk 0:02:47]}  c5 {[%clk 0:02:40]} 13. Be3 {[%clk 0:02:39]}  Rb8 {[%clk 0:02:37]} 14. b3 {[%clk 0:02:37]}  Nd5 {[%clk 0:02:33]} 15. Bd2 {[%clk 0:02:09]}  cxd4 {[%clk 0:02:24]} 16. Qe4 {[%clk 0:02:09]}  N7f6 {[%clk 0:02:20]} 17. Qxd4 {[%clk 0:02:09]}  Nb4 {[%clk 0:02:17]} 18. Bxb4 {[%clk 0:02:00]}  Bxb4 {[%clk 0:02:05]} 19. Qxd8 {[%clk 0:02:01]}  Rfxd8 {[%clk 0:02:06]} 20. Red1 {[%clk 0:01:58]}  Nd5 {[%clk 0:02:06]} 21. Ne2 {[%clk 0:01:54]}  Bc5 {[%clk 0:02:01]} 22. Be4 {[%clk 0:01:49]}  Nf6 {[%clk 0:02:00]} 23. Bf3 {[%clk 0:01:44]}  e5 {[%clk 0:02:00]} 24. Ng3 {[%clk 0:01:41]}  Bd4 {[%clk 0:01:59]} 25. Rab1 {[%clk 0:01:41]}  g6 {[%clk 0:01:59]} 26. Ne4 {[%clk 0:01:34]}  Nxe4 {[%clk 0:01:58]} 27. Bxe4 {[%clk 0:01:35]}  f5 {[%clk 0:01:59]} 28. Bf3 {[%clk 0:01:31]}  e4 {[%clk 0:01:59]} 29. Be2 {[%clk 0:01:31]}  Kg7 {[%clk 0:01:59]} 30. Kf1 {[%clk 0:01:18]}  Kf6 {[%clk 0:01:58]} 31. Rd2 {[%clk 0:01:13]}  Rd6 {[%clk 0:01:50]} 32. Rbd1 {[%clk 0:01:12]}  Rbd8 {[%clk 0:01:50]} 33. f3 {[%clk 0:01:03]}  Ke5 {[%clk 0:01:49]} 34. fxe4 {[%clk 0:01:00]}  fxe4 {[%clk 0:01:49]} 35. Bc4 {[%clk 0:00:28]}  Rf8+ {[%clk 0:01:32]} 36. Ke2 {[%clk 0:00:28]}  e3 {[%clk 0:01:27]} 37. Rd3 {[%clk 0:00:27]}  Rf2+ {[%clk 0:01:27]} 38. Ke1 {[%clk 0:00:28]}  Rxc2 {[%clk 0:01:24]} 0-1


[Site "https://www.chess.com"]

[Event "Titled Tuesday Blitz March 14 Late 2023"]
[White "Aldokhin, Ivan"]
[Black "Mekhane, Adam"]
[WhiteFideId "24115720"]
[BlackFideId "36050601"]
[WhiteElo "2322"]
[BlackElo "2177"]
[Result "1-0"]
[Round "03"]
[TimeControl "180+1"]
[Date "2023.03.14"]
[WhiteClock "0:00:32"]
[BlackClock "0:00:01"]

1. e4 {[%clk 0:02:54]}  c5 {[%clk 0:02:59]} 2. Nf3 {[%clk 0:02:54]}  Nc6 {[%clk 0:02:59]} 3. d4 {[%clk 0:02:55]}  cxd4 {[%clk 0:02:58]} 4. Nxd4 {[%clk 0:02:56]}  Nf6 {[%clk 0:02:58]} 5. Nc3 {[%clk 0:02:56]}  d6 {[%clk 0:02:52]} 6. Bc4 {[%clk 0:02:55]}  e6 {[%clk 0:02:46]} 7. Bb3 {[%clk 0:02:53]}  Be7 {[%clk 0:02:46]} 8. Be3 {[%clk 0:02:53]}  O-O {[%clk 0:02:41]} 9. Qe2 {[%clk 0:02:53]}  Bd7 {[%clk 0:02:38]} 10. O-O-O {[%clk 0:02:53]}  a6 {[%clk 0:02:36]} 11. f4 {[%clk 0:02:30]}  b5 {[%clk 0:02:31]} 12. e5 {[%clk 0:02:24]}  Nxd4 {[%clk 0:01:42]} 13. Rxd4 {[%clk 0:01:58]}  Ne8 {[%clk 0:01:37]} 14. exd6 {[%clk 0:01:58]}  Nxd6 {[%clk 0:01:33]} 15. Rhd1 {[%clk 0:01:55]}  Qc7 {[%clk 0:01:31]} 16. Ne4 {[%clk 0:01:37]}  Nxe4 {[%clk 0:00:37]} 17. Rxd7 {[%clk 0:01:37]}  Qc6 {[%clk 0:00:30]} 18. Rxe7 {[%clk 0:01:35]}  a5 {[%clk 0:00:30]} 19. Rdd7 {[%clk 0:01:12]}  a4 {[%clk 0:00:26]} 20. Bxe6 {[%clk 0:01:11]}  Nf6 {[%clk 0:00:08]} 21. Bxf7+ {[%clk 0:00:40]}  Kh8 {[%clk 0:00:08]} 22. Bd5 {[%clk 0:00:41]}  Nxd5 {[%clk 0:00:07]} 23. Rxg7 {[%clk 0:00:38]}  Nf6 {[%clk 0:00:02]} 24. Bd4 {[%clk 0:00:34]}  Rae8 {[%clk 0:00:01]} 25. Rxh7+ {[%clk 0:00:32]} 1-0


[Site "https://www.chess.com"]